fUSD/lending_fUSD_20251006
["ID","MTS","AMOUNT","RATE_DAILY","PERIOD"]
[389542711,1759708984592,50000.0,0.00013,2]
[389542713,1759709059726,8700.0,0.00013,2]
[389542755,1759709432165,-151.33,0.00013133,2]
[389542757,1759709432175,-257.0,0.00013224,2]
[389542759,1759709432185,-1200.0,0.00013314,2]
[389542761,1759709432194,-150.0,0.00013315,2]
[389542762,1759709432203,-150.0,0.00013315,2]
[389542763,1759709432212,-150.0,0.00013315,2]
[389542764,1759709432222,-150.0,0.00013315,2]
[389542765,1759709432231,-47.17325,0.00013315,2]
[389542793,1759709438043,-102.82675,0.00013315,2]
[389542794,1759709438055,-150.0,0.00013315,2]
[389542795,1759709438065,-150.0,0.00013315,2]
[389542796,1759709438075,-150.0,0.00013315,2]
[389542797,1759709438085,-150.0,0.00013315,2]
[389542798,1759709438098,-150.0,0.00013315,2]
[389542799,1759709438108,-150.0,0.00013315,2]
[389542800,1759709438118,-150.0,0.00013315,2]
[389542801,1759709438128,-150.0,0.00013315,2]
[389542802,1759709438139,-150.0,0.00013315,2]
[389542803,1759709438149,-150.0,0.00013315,2]
[389542804,1759709438158,-2000.0,0.00013326,2]
[389542805,1759709438168,-150.4,0.00013452,2]
[389542806,1759709438178,-151.33,0.00013519,2]
[389542807,1759709438188,-2000.0,0.00013596,2]
[389542808,1759709438198,-200.0,0.00013699,2]
[389542809,1759709438208,-166.99550996,0.00013759,2]
[389542810,1759709438220,-82.96449004,0.00013759,2]
[389542811,1759709438230,-417.03550996,0.00013794,2]
[389542812,1759709438248,-1475.36449004,0.00013794,2]
[389542813,1759709438259,-150.0,0.00013808,2]
[389542814,1759709438269,-182.8,0.00013825,2]
[389542815,1759709438278,-150.0,0.00013832,2]
[389542816,1759709438288,-151.33,0.00013905,2]
[389542817,1759709438297,-150.0,0.00014055,2]
[389542818,1759709438307,-150.0,0.00014055,2]
[389542819,1759709438317,-150.0,0.00014055,2]
[389542820,1759709438326,-150.0,0.00014055,2]
[389542821,1759709438336,-150.0,0.00014055,2]
[389542822,1759709438346,-150.0,0.00014055,2]
[389542823,1759709438356,-150.0,0.00014055,2]
[389542824,1759709438366,-150.0,0.00014058,2]
[389542825,1759709438377,-7965.41053268,0.00014059,2]
[389542826,1759709438387,-231.28369723,0.00014059,2]
[389542827,1759709438397,-278.75,0.00014082,2]
[389542828,1759709438407,-181.4924268,0.00014113,2]
[389542829,1759709438418,-216.80414709,0.00014113,2]
[389542830,1759709438429,-492.882235,0.00014113,2]
[389542831,1759709438438,-7518.88247116,0.00014114,2]
[389542832,1759709438459,-741.24825123,0.00014114,2]
[389542834,1759709438476,-168.0,0.00014154,2]
[389542836,1759709438486,-2946.11174877,0.00014169,2]
[389542838,1759709438497,-2276.7610829,0.00014169,2]
[389542842,1759709438517,-3342.88272744,0.00014169,2]
[389542844,1759709438527,-168.0,0.00014198,2]
[389542846,1759709438537,-150.4,0.000142,2]
[389542848,1759709438548,-1734.32724206,0.00014224,2]
[389542850,1759709438557,-168.0,0.00014242,2]
[389542852,1759709438567,-150.0,0.00014274,2]
[389542854,1759709438577,-150.0,0.00014274,2]
[389542856,1759709438588,-150.0,0.00014274,2]
[389542858,1759709438599,-150.0,0.00014274,2]
[389542860,1759709438609,-168.0,0.00014282,2]
[389542862,1759709438619,-150.0,0.00014301,2]
[389542864,1759709438629,-2000.0,0.00014446,2]
[389542865,1759709438639,-322.61926551,0.00014446,2]
[389542867,1759709438659,-1237.3698,0.00014446,2]
[389542869,1759709438670,-440.01093449,0.00014446,2]
[389542871,1759709438680,-195.0,0.00014446,2]
[389542873,1759709438691,-193.0,0.00014446,2]
[389542875,1759709438701,-195.0,0.00014446,2]
[389542877,1759709438710,-300.0,0.00014446,2]
[389542879,1759709438720,-300.0,0.00014446,2]
[389542881,1759709438731,-250.0,0.00014446,2]
[389542883,1759709438741,-500.0,0.00014446,2]
[389542885,1759709438751,-300.0,0.00014446,2]
[389542887,1759709438762,-300.0,0.00014446,2]
[389542889,1759709438772,-300.0,0.00014446,2]
[389542891,1759709438783,-309.68411022,0.00014446,2]
[389542893,1759709438793,-76.97469039,0.00014483,2]
[389542895,1759709438805,-123.02530961,0.00014483,2]
[389542897,1759709438815,-322.6107,0.00014483,2]
[389542900,1759709438827,-601.3376128,0.00014483,2]
[389542902,1759709438837,-200.0,0.00014483,2]
[389542903,1759709438848,-151.0,0.00014483,2]
[389542905,1759709438858,-151.0,0.00014483,2]
[389542908,1759709438874,-151.0,0.00014483,2]
[389542910,1759709438884,-200.0,0.00014483,2]
[389542912,1759709438895,-151.0,0.00014483,2]
[389542914,1759709438905,-200.0,0.00014483,2]
[389542916,1759709438915,-200.0,0.00014483,2]
[389542918,1759709438925,-200.0,0.00014483,2]
[389542920,1759709438936,-329.92993037,0.00014483,2]
[389542922,1759709438946,-608.2,0.000145,2]
[389542924,1759709438956,-168.0,0.00014538,2]
[389542926,1759709438965,-168.0,0.00014546,2]
[389542928,1759709438975,-168.0,0.00014586,2]
[389542930,1759709438986,-480.0,0.00014645,2]
[389542932,1759709438996,-2133.27,0.00014672,2]
[389542934,1759709439006,-150.518,0.00014672,2]
[389542936,1759709439020,-1425.0,0.00014676,2]
[389542938,1759709439030,-621.0,0.0001468,2]
[389542940,1759709439040,-900.0,0.0001468,2]
[389542942,1759709439050,-6238.0,0.0001468,2]
[389542944,1759709439062,-4116.0,0.0001468,2]
[389542946,1759709439072,-200.0,0.00014682,2]
[389542948,1759709439083,-1000.0,0.000147,2]
[389542950,1759709439096,-1022.8983,0.000147,2]
[389542952,1759709439106,-439.55430535,0.000147,2]
[389542954,1759709439117,-872.64801758,0.000147,2]
[389543036,1759709440098,-4127.35198242,0.000147,2]
[389543037,1759709440108,-150.0,0.000147,2]
[389543038,1759709440118,-21753.14962744,0.000147,2]
[389543039,1759709440128,-150.0,0.000147,2]
[389543040,1759709440137,-973.0,0.000147,2]
[389543041,1759709440147,-722.0,0.000147,2]
[389543042,1759709440156,-500.0,0.000147,2]
[389543043,1759709440166,-2946.0,0.000147,2]
[389543044,1759709440176,-500.0,0.000147,2]
[389543045,1759709440186,-150.0,0.000147,2]
[389543046,1759709440196,-150.0,0.000147,2]
[389543047,1759709440206,-470.4802572,0.000147,2]
[389543048,1759709440216,-500.0,0.000147,2]
[389543049,1759709440225,-150.0,0.000147,2]
[389543050,1759709440235,-500.0,0.000147,2]
[389543051,1759709440244,-150.0,0.000147,2]
[389543052,1759709440253,-500.0,0.000147,2]
[389543053,1759709440263,-500.0,0.000147,2]
[389543054,1759709440272,-150.0,0.000147,2]
[389543055,1759709440281,-500.0,0.000147,2]
[389543056,1759709440289,-150.0,0.000147,2]
[389543057,1759709440299,-150.0,0.000147,2]
[389543058,1759709440308,-500.0,0.000147,2]
[389543059,1759709440317,-1591.0,0.000147,2]
[389543060,1759709440326,-150.0,0.000147,2]
[389543061,1759709440335,-500.0,0.000147,2]
[389543062,1759709440346,-150.0,0.000147,2]
[389543063,1759709440355,-150.0,0.000147,2]
[389543064,1759709440365,-500.0,0.000147,2]
[389543065,1759709440374,-150.0,0.000147,2]
[389543066,1759709440383,-500.0,0.000147,2]
[389543068,1759709440393,-500.0,0.000147,2]
[389543069,1759709440403,-150.0,0.000147,2]
[389543071,1759709440413,-919.0,0.000147,2]
[389543073,1759709440423,-659.0,0.000147,2]
[389543075,1759709440433,-184.36119419,0.000147,2]
[389543077,1759709440443,-186.77537291,0.000147,2]
[389543079,1759709440453,-171.15304219,0.000147,2]
[389543080,1759709440462,-931.73407065,0.000147,2]
[389543082,1759709440472,-500.0,0.000147,2]
[389543084,1759709440481,-684.81,0.000147,2]
[389543086,1759709440490,-150.0,0.000147,2]
[389543088,1759709440501,-931.73407061,0.00014729,2]
[389543090,1759709440510,-150.0,0.00014731,2]
[389543092,1759709440519,-931.73407061,0.00014757,2]
[389543093,1759709440528,-323.87825739,0.00014773,2]
[389543095,1759709440537,-500.0,0.00014773,2]
[389543097,1759709440547,-500.0,0.00014773,2]
[389543099,1759709440556,-500.0,0.00014773,2]
[389543101,1759709440566,-501.36791258,0.00014773,2]
[389543104,1759709440576,-500.92577692,0.00014773,2]
[389543106,1759709440586,-500.0,0.00014773,2]
[389543108,1759709440596,-500.0,0.00014773,2]
[389543110,1759709440606,-500.24728439,0.00014773,2]
[389543112,1759709440616,-500.67187423,0.00014773,2]
[389543113,1759709440625,-500.66950637,0.00014773,2]
[389543115,1759709440635,-501.64555354,0.00014773,2]
[389543117,1759709440644,-500.0,0.00014773,2]
[389543119,1759709440653,-500.0,0.00014773,2]
[389543121,1759709440662,-500.0,0.00014773,2]
[389543123,1759709440671,-931.73407061,0.00014786,2]
[389543124,1759709440680,-174.23,0.0001479,2]
[389543126,1759709440689,-174.23,0.0001479,2]
[389543128,1759709440698,-174.23,0.0001479,2]
[389543130,1759709440708,-174.23,0.0001479,2]
[389543132,1759709440717,-174.23,0.0001479,2]
[389543134,1759709440727,-197.45673894,0.0001479,2]
[389543135,1759709440735,-150.0,0.00014791,2]
[389543137,1759709440745,-500.0,0.00014791,2]
[389543139,1759709440755,-254.30704401,0.00014791,2]
[389543141,1759709440763,-150.0,0.00014791,2]
[389543143,1759709440772,-563.0,0.00014791,2]
[389543145,1759709440782,-150.0,0.00014791,2]
[389543147,1759709440791,-500.0,0.00014791,2]
[389543149,1759709440800,-500.0,0.00014791,2]
[389543151,1759709440810,-150.0,0.00014795,2]
[389543152,1759709440820,-150.0,0.00014795,2]
[389543154,1759709440830,-150.0,0.00014795,2]
[389543156,1759709440839,-150.0,0.00014795,2]
[389543158,1759709440849,-150.0,0.00014795,2]
[389543160,1759709440859,-285.26724481,0.00014795,2]
[389543162,1759709440868,-151.59571285,0.00014795,2]
[389543164,1759709440877,-150.0,0.00014795,2]
[389543165,1759709440888,-150.0,0.00014795,2]
[389543167,1759709440898,-150.0,0.00014795,2]
[389543169,1759709440907,-286.89839472,0.00014795,2]
[389543171,1759709440917,-195.98958582,0.00014795,2]
[389543173,1759709440926,-150.0,0.00014795,2]
[389543174,1759709440935,-263.49521448,0.00014795,2]
[389543176,1759709440944,-151.0,0.00014797,2]
[389543178,1759709440953,-158.1847117,0.00014799,2]
[389543180,1759709440963,-10180.2901583,0.00014799,2]
[389543182,1759709440972,-3259.984832,0.00014799,2]
[389543183,1759709440982,-1000.0,0.00014799,2]
[389543185,1759709440991,-155.0,0.00014799,2]
[389543187,1759709441000,-165.7864695,0.00014799,2]
[389543189,1759709441010,-26911.3296003,0.00014799,2]
[389543191,1759709441024,-934.00188,0.00014799,2]
[389543193,1759709441034,-150.0,0.00014799,2]
[389543195,1759709441043,-27677.7804577,0.00014799,2]
[389543197,1759709441054,-500.0,0.000148,2]
[389543198,1759709441064,-89525.55538044,0.000148,2]
[389543201,1759709441077,-19315.53003518,0.000148,2]
[389543203,1759709441091,-50768.31655699,0.000148,2]
[389543205,1759709441104,-6029.4,0.000148,2]
[389543206,1759709441123,-881.92,0.000148,2]
[389543207,1759709441136,-212535.46912594,0.000148,2]
[389543208,1759709441146,-2623029.48737839,0.000148,2]
[389543209,1759709441166,-35526.57920579,0.000148,2]
[389543210,1759709441182,-3039706.0219739,0.000148,2]
[389543211,1759709441192,-220303.14483668,0.000148,2]
[389543212,1759709441202,-151.0,0.000148,2]
[389543213,1759709441211,-500.0,0.000148,2]
[389543214,1759709441221,-7151.280739,0.000148,2]
[389543215,1759709441230,-222.041799,0.000148,2]
[389543216,1759709441240,-156.113302,0.000148,2]
[389543217,1759709441249,-258.689018,0.000148,2]
[389543218,1759709441258,-218.558623,0.000148,2]
[389543219,1759709441267,-1772.167099,0.000148,2]
[389543220,1759709441276,-3544.334198,0.000148,2]
[389543221,1759709441285,-637.706817,0.000148,2]
[389543222,1759709441295,-311.69546051,0.000148,2]
[389543223,1759709441304,-2495.6239,0.000148,2]
[389543224,1759709441313,-184.36119419,0.000148,2]
[389543225,1759709441323,-168.0,0.00014807,2]
[389543226,1759709441333,-931.73407061,0.00014814,2]
[389543227,1759709441343,-1231.0,0.00014829,2]
[389543228,1759709441353,-151.0,0.00014829,2]
[389543229,1759709441363,-151.0,0.00014829,2]
[389543230,1759709441374,-151.0,0.00014829,2]
[389543231,1759709441383,-685.34087882,0.00014829,2]
[389543232,1759709441401,-151.0,0.00014829,2]
[389543233,1759709441414,-151.72334131,0.00014829,2]
[389543234,1759709441423,-153.0,0.00014829,2]
[389543235,1759709441433,-153.0,0.00014829,2]
[389543236,1759709441443,-153.0,0.00014829,2]
[389543237,1759709441452,-301.0,0.00014829,2]
[389543238,1759709441462,-650.12836348,0.00014829,2]
[389543239,1759709441471,-931.73407061,0.00014843,2]
[389543240,1759709441481,-151.0,0.0001487,2]
[389543241,1759709441490,-150.0,0.0001487,2]
[389543242,1759709441500,-150.0,0.0001487,2]
[389543243,1759709441510,-150.0,0.0001487,2]
[389543244,1759709441519,-150.0,0.0001487,2]
[389543245,1759709441529,-150.0,0.0001487,2]
[389543246,1759709441538,-150.0,0.0001487,2]
[389543247,1759709441548,-150.0,0.0001487,2]
[389543248,1759709441558,-150.0,0.0001487,2]
[389543249,1759709441567,-3401.0,0.0001487,2]
[389543250,1759709441577,-2046.0,0.0001487,2]
[389543251,1759709441587,-1265.0,0.0001487,2]
[389543252,1759709441596,-1307.0,0.0001487,2]
[389543253,1759709441606,-603.0,0.0001487,2]
[389543254,1759709441615,-1586.0,0.0001487,2]
[389543255,1759709441625,-570.0,0.0001487,2]
[389543256,1759709441635,-815.0,0.0001487,2]
[389543257,1759709441644,-500.0,0.00014874,2]
[389543258,1759709441654,-168.0,0.00014887,2]
[389543259,1759709441663,-1000.0,0.00014899,2]
[389543260,1759709441673,-5800.0,0.000149,2]
[389543261,1759709441682,-222.041799,0.000149,3]
[389543262,1759709441691,-7151.280739,0.000149,3]
[389543263,1759709441701,-156.113302,0.000149,3]
[389543264,1759709441711,-258.689018,0.000149,3]
[389543265,1759709441721,-218.558623,0.000149,3]
[389543266,1759709441730,-1772.167099,0.000149,3]
[389543267,1759709441740,-3544.334198,0.000149,3]
[389543268,1759709441749,-637.706817,0.000149,3]
[389543269,1759709441759,-385.0,0.000149,2]
[389543270,1759709441768,-597.0,0.000149,2]
[389543271,1759709441778,-184.36119419,0.000149,2]
[389543272,1759709441787,-243.0,0.000149,2]
[389543273,1759709441796,-166.66,0.00014903,2]
[389543274,1759709441805,-470.48025719,0.00014924,2]
[389543275,1759709441814,-1582.0,0.00014942,2]
[389543276,1759709441824,-150.4,0.00014947,2]
[389543277,1759709441833,-182.8,0.00014966,2]
[389543278,1759709441843,-500.0,0.0001497,2]
[389543279,1759709441853,-500.0,0.0001497,2]
[389543280,1759709441863,-500.0,0.0001497,2]
[389543281,1759709441872,-500.0,0.0001497,2]
[389543282,1759709441882,-500.0,0.0001497,2]
[389543283,1759709441891,-151.0,0.00014971,2]
[389543284,1759709441901,-500.0,0.00014973,2]
[389543285,1759709441911,-500.0,0.00014973,2]
[389543286,1759709441922,-500.0,0.00014973,2]
[389543287,1759709441932,-500.0,0.00014973,2]
[389543288,1759709441943,-500.0,0.00014973,2]
[389543289,1759709441953,-500.0,0.00014973,2]
[389543290,1759709441963,-500.0,0.00014973,2]
[389543291,1759709441974,-500.0,0.00014973,2]
[389543292,1759709441984,-500.0,0.00014973,2]
[389543293,1759709441994,-500.0,0.00014973,2]
[389543294,1759709442004,-500.0,0.00014973,2]
[389543295,1759709442017,-500.0,0.00014973,2]
[389543296,1759709442027,-500.0,0.00014973,2]
[389543297,1759709442037,-500.0,0.00014973,2]
[389543298,1759709442047,-500.0,0.00014973,2]
[389543299,1759709442057,-500.0,0.00014973,2]
[389543300,1759709442068,-172.95187533,0.00014973,2]
[389543301,1759709442079,-500.0,0.00014973,2]
[389543302,1759709442090,-157.16250726,0.00014973,2]
[389543303,1759709442102,-302.62388393,0.00014973,2]
[389543304,1759709442112,-500.0,0.00014973,2]
[389543305,1759709442123,-502.03483681,0.00014973,2]
[389543306,1759709442134,-182.26639043,0.00014973,2]
[389543307,1759709442145,-500.0,0.00014973,2]
[389543308,1759709442155,-500.0,0.00014973,2]
[389543309,1759709442165,-500.0,0.00014973,2]
[389543310,1759709442175,-500.0,0.00014973,2]
[389543311,1759709442185,-500.0,0.00014973,2]
[389543312,1759709442195,-500.0,0.00014973,2]
[389543313,1759709442205,-500.0,0.00014973,2]
[389543314,1759709442215,-502.37766679,0.00014973,2]
[389543315,1759709442226,-500.0,0.00014973,2]
[389543316,1759709442236,-500.0,0.00014973,2]
[389543317,1759709442246,-500.0,0.00014973,2]
[389543318,1759709442256,-527.57625572,0.00014973,2]
[389543319,1759709442266,-529.46739022,0.00014973,2]
[389543320,1759709442277,-207.60141403,0.00014973,2]
[389543321,1759709442287,-500.0,0.00014973,2]
[389543322,1759709442297,-500.0,0.00014973,2]
[389543323,1759709442309,-500.0,0.00014973,2]
[389543324,1759709442319,-500.11413164,0.00014973,2]
[389543325,1759709442330,-500.0,0.00014973,2]
[389543326,1759709442340,-523.0184698,0.00014973,2]
[389543327,1759709442352,-500.0,0.00014973,2]
[389543328,1759709442363,-439.55430534,0.00014973,2]
[389543329,1759709442374,-571.0,0.00014973,2]
[389543330,1759709442385,-500.0,0.00014973,2]
[389543331,1759709442396,-500.0,0.00014973,2]
[389543332,1759709442407,-500.0,0.00014973,2]
[389543333,1759709442418,-500.0,0.00014973,2]
[389543334,1759709442428,-500.0,0.00014973,2]
[389543335,1759709442439,-500.0,0.00014973,2]
[389543336,1759709442452,-500.0,0.00014973,2]
[389543337,1759709442463,-500.0,0.00014973,2]
[389543338,1759709442474,-500.0,0.00014973,2]
[389543339,1759709442485,-500.0,0.00014973,2]
[389543340,1759709442496,-500.0,0.00014973,2]
[389543341,1759709442507,-500.0,0.00014973,2]
[389543342,1759709442518,-500.0,0.00014973,2]
[389543343,1759709442529,-500.0,0.00014973,2]
[389543344,1759709442539,-500.0,0.00014973,2]
[389543345,1759709442550,-500.0,0.00014973,2]
[389543346,1759709442561,-500.0,0.00014973,2]
[389543347,1759709442571,-500.0,0.00014973,2]
[389543348,1759709442582,-500.0,0.00014973,2]
[389543349,1759709442594,-500.0,0.00014973,2]
[389543350,1759709442605,-500.0,0.00014973,2]
[389543351,1759709442616,-500.0,0.00014973,2]
[389543352,1759709442627,-500.0,0.00014973,2]
[389543353,1759709442637,-500.0,0.00014973,2]
[389543354,1759709442648,-500.0,0.00014973,2]
[389543355,1759709442659,-500.0,0.00014973,2]
[389543356,1759709442670,-500.0,0.00014973,2]
[389543357,1759709442681,-500.0,0.00014973,2]
[389543358,1759709442691,-500.0,0.00014973,2]
[389543359,1759709442702,-500.0,0.00014973,2]
[389543360,1759709442712,-500.0,0.00014973,2]
[389543361,1759709442722,-500.0,0.00014973,2]
[389543362,1759709442733,-500.0,0.00014973,2]
[389543363,1759709442743,-500.0,0.00014973,2]
[389543364,1759709442754,-500.0,0.00014973,2]
[389543365,1759709442764,-500.0,0.00014973,2]
[389543366,1759709442775,-500.0,0.00014973,2]
[389543367,1759709442786,-500.0,0.00014973,2]
[389543368,1759709442796,-500.0,0.00014973,2]
[389543369,1759709442806,-500.0,0.00014973,2]
[389543370,1759709442817,-500.0,0.00014973,2]
[389543371,1759709442828,-500.0,0.00014973,2]
[389543372,1759709442838,-500.0,0.00014973,2]
[389543373,1759709442850,-500.0,0.00014973,2]
[389543374,1759709442860,-500.0,0.00014973,2]
[389543375,1759709442871,-500.0,0.00014973,2]
[389543376,1759709442882,-500.0,0.00014973,2]
[389543377,1759709442893,-500.0,0.00014973,2]
[389543378,1759709442904,-500.0,0.00014973,2]
[389543379,1759709442915,-500.0,0.00014973,2]
[389543380,1759709442926,-500.0,0.00014973,2]
[389543381,1759709442936,-500.0,0.00014973,2]
[389543382,1759709442948,-500.0,0.00014973,2]
[389543383,1759709442958,-500.0,0.00014973,2]
[389543384,1759709442968,-500.0,0.00014973,2]
[389543385,1759709442978,-500.0,0.00014973,2]
[389543386,1759709442988,-500.0,0.00014973,2]
[389543387,1759709443000,-500.0,0.00014973,2]
[389543388,1759709443011,-500.0,0.00014973,2]
[389543389,1759709443027,-500.0,0.00014973,2]
[389543390,1759709443037,-500.0,0.00014973,2]
[389543391,1759709443048,-500.0,0.00014973,2]
[389543392,1759709443060,-500.0,0.00014973,2]
[389543393,1759709443070,-500.0,0.00014973,2]
[389543394,1759709443081,-500.0,0.00014973,2]
[389543395,1759709443093,-500.0,0.00014973,2]
[389543396,1759709443105,-500.0,0.00014973,2]
[389543397,1759709443116,-500.0,0.00014973,2]
[389543398,1759709443126,-500.0,0.00014973,2]
[389543399,1759709443137,-150.0,0.00014974,2]
[389543400,1759709443148,-150.0,0.00014974,2]
[389543401,1759709443159,-973.0,0.00014974,2]
[389543402,1759709443170,-722.0,0.00014974,2]
[389543403,1759709443181,-500.0,0.00014974,2]
[389543404,1759709443191,-2946.0,0.00014974,2]
[389543405,1759709443202,-500.0,0.00014974,2]
[389543406,1759709443213,-150.0,0.00014974,2]
[389543407,1759709443223,-150.0,0.00014974,2]
[389543408,1759709443233,-574.60311347,0.00014974,2]
[389543409,1759709443243,-151.38539022,0.00014974,2]
[389543410,1759709443254,-500.0,0.00014974,2]
[389543411,1759709443264,-208.08229454,0.00014974,2]
[389543412,1759709443275,-500.0,0.00014974,2]
[389543413,1759709443285,-500.0,0.00014974,2]
[389543414,1759709443295,-150.0,0.00014974,2]
[389543415,1759709443305,-500.0,0.00014974,2]
[389543416,1759709443316,-150.0,0.00014974,2]
[389543417,1759709443331,-151.23074111,0.00014974,2]
[389543418,1759709443342,-500.0,0.00014974,2]
[389543419,1759709443353,-1591.0,0.00014974,2]
[389543420,1759709443363,-500.0,0.00014974,2]
[389543421,1759709443374,-207.8320331,0.00014974,2]
[389543422,1759709443385,-255.97817009,0.00014974,2]
[389543423,1759709443396,-500.0,0.00014974,2]
[389543424,1759709443407,-500.0,0.00014974,2]
[389543425,1759709443417,-919.0,0.00014974,2]
[389543426,1759709443427,-659.0,0.00014974,2]
[389543427,1759709443437,-500.0,0.00014974,2]
[389543428,1759709443448,-150.0,0.00014974,2]
[389543429,1759709443459,-684.81,0.00014974,2]
[389543430,1759709443469,-1056.74407101,0.00014988,2]
[389543431,1759709443479,-460.08718563,0.00014988,2]
[389543432,1759709443489,-126728.27336486,0.00014989,2]
[389543434,1759709443499,-77682.97954446,0.00014989,2]
[389543435,1759709443509,-290.40281212,0.00014997,2]
[389543436,1759709443520,-300.0,0.00014999,2]
[389543438,1759709443530,-2699152.32551742,0.00015,2]
[389543440,1759709443541,-28432.31094391,0.00015,7]
[389543442,1759709443552,-3607.2402191,0.00015,2]
[389543444,1759709443563,-374994.56656598,0.00015,2]
[389543446,1759709443574,-628695.4444672,0.00015,2]
[389543448,1759709443584,-150.0,0.00015,2]
[389543450,1759709443596,-389.52619892,0.00015,2]
[389543452,1759709443607,-150.0,0.00015,2]
[389543455,1759709443618,-1248.97225067,0.00015,2]
[389543457,1759709443629,-150.0,0.00015,2]
[389543459,1759709443639,-150.0,0.00015,2]
[389543461,1759709443650,-1844.8555031,0.00015,2]
[389543463,1759709443660,-240.37533657,0.00015,2]
[389543465,1759709443671,-30000.0,0.00015,2]
[389543467,1759709443680,-369331.21427057,0.00015,2]
[389543470,1759709443690,-420990.07806828,0.00015,2]
[389543472,1759709443701,-278337.63111804,0.00015,2]
[389543474,1759709443711,-230370.94128737,0.00015,2]
[389543476,1759709443722,-52560.19884985,0.00015,2]
[389543478,1759709443732,-151.0,0.00015,2]
[389543480,1759709443743,-151.0,0.00015,2]
[389543482,1759709443754,-301.156456,0.00015,2]
[389543484,1759709443764,-151.0,0.00015,2]
[389543487,1759709443774,-151.0,0.00015,2]
[389543488,1759709443784,-151.0,0.00015,2]
[389543490,1759709443794,-151.0,0.00015,2]
[389543491,1759709443805,-151.0,0.00015,2]
[389543492,1759709443817,-151.0,0.00015,2]
[389543493,1759709443827,-151.0,0.00015,2]
[389543494,1759709443837,-151.0,0.00015,2]
[389543495,1759709443847,-151.0,0.00015,2]
[389543496,1759709443858,-151.0,0.00015,2]
[389543497,1759709443869,-151.0,0.00015,2]
[389543498,1759709443880,-151.0,0.00015,2]
[389543499,1759709443890,-151.0,0.00015,2]
[389543500,1759709443901,-151.0,0.00015,2]
[389543501,1759709443911,-151.0,0.00015,2]
[389543502,1759709443921,-151.0,0.00015,2]
[389543503,1759709443932,-151.0,0.00015,2]
[389543504,1759709443942,-151.0,0.00015,2]
[389543505,1759709443953,-151.0,0.00015,2]
[389543506,1759709443963,-151.0,0.00015,2]
[389543507,1759709443974,-151.0,0.00015,2]
[389543508,1759709443984,-151.0,0.00015,2]
[389543509,1759709443995,-151.0,0.00015,2]
[389543510,1759709444005,-151.0,0.00015,2]
[389543511,1759709444022,-151.0,0.00015,2]
[389543512,1759709444033,-151.0,0.00015,2]
[389543513,1759709444043,-151.0,0.00015,2]
[389543514,1759709444054,-151.0,0.00015,2]
[389543515,1759709444066,-151.0,0.00015,2]
[389543516,1759709444077,-151.0,0.00015,2]
[389543517,1759709444087,-151.0,0.00015,2]
[389543518,1759709444098,-157.516226,0.00015,2]
[389543519,1759709444109,-151.0,0.00015,2]